fUST/lending_fUST_20250603
["ID","MTS","AMOUNT","RATE_DAILY","PERIOD"]
[363952873,1748945438720,-793.63,0.00016986,2]
[363952874,1748945438730,-440.0,0.00016986,2]
[363952877,1748945438740,-200.90035427,0.00016986,2]
[363952879,1748945438749,-450.0,0.00016986,2]
[363952881,1748945438759,-1408.68,0.00016986,2]
[363952883,1748945438768,-470.69,0.00016986,2]
[363952885,1748945438778,-440.0,0.00016986,2]
[363952887,1748945438789,-440.0,0.00016986,2]
[363952888,1748945438799,-522.08,0.00016986,2]
[363952890,1748945438808,-1348.84,0.00016986,2]
[363952892,1748945438822,-440.0,0.00016986,2]
[363952895,1748945438833,-564.73,0.00016986,2]
[363952897,1748945438843,-1238.06,0.00016986,2]
[363952899,1748945438852,-1259.13,0.00016986,2]
[363952901,1748945438862,-440.0,0.00016986,2]
[363952903,1748945438872,-440.0,0.00016986,2]
[363952905,1748945438881,-589.57,0.00016986,2]
[363952907,1748945438891,-440.0,0.00016986,2]
[363952909,1748945438901,-509.51775153,0.00017034,2]
[363952911,1748945438916,-500.0,0.00017034,2]
[363952913,1748945438925,-500.0,0.000172,2]
[363952915,1748945438934,-500.0,0.000172,2]
[363952917,1748945438945,-500.0,0.000172,2]
[363952919,1748945438955,-3667.11274,0.00017229,2]
[363952921,1748945438964,-647.62,0.00017259,2]
[363952923,1748945438973,-647.62,0.00017259,2]
[363952925,1748945438982,-314.94761707,0.00017259,3]
[363952927,1748945438992,-440.0,0.0001726,2]
[363952929,1748945439001,-400.0,0.0001726,2]
[363952931,1748945439011,-440.0,0.0001726,2]
[363952933,1748945439021,-440.0,0.0001726,2]
[363952935,1748945439030,-440.0,0.0001726,2]
[363952937,1748945439040,-504.72230835,0.0001726,2]
[363952938,1748945439049,-440.0,0.0001726,2]
[363952941,1748945439059,-440.0,0.0001726,2]
[363952943,1748945439069,-440.0,0.0001726,2]
[363952945,1748945439078,-440.0,0.0001726,2]
[363952947,1748945439089,-440.0,0.0001726,2]
[363952949,1748945439100,-440.0,0.0001726,2]
[363952951,1748945439110,-400.0,0.0001726,2]
[363952953,1748945439120,-400.0,0.0001726,2]
[363952955,1748945439129,-440.0,0.0001726,2]
[363952957,1748945439139,-454.85705169,0.0001726,2]
[363952959,1748945439150,-407.55,0.0001726,2]
[363952961,1748945439159,-480.0,0.0001726,2]
[363952963,1748945439169,-440.0,0.0001726,2]
[363952965,1748945439178,-449.52,0.0001726,2]
[363952967,1748945439188,-440.0,0.0001726,2]
[363952969,1748945439198,-337.29,0.0001726,2]
[363952971,1748945439207,-440.0,0.0001726,2]
[363952973,1748945439217,-440.0,0.0001726,2]
[363952975,1748945439226,-440.0,0.0001726,2]
[363952977,1748945439236,-896.47,0.0001726,2]
[363952979,1748945439245,-440.0,0.0001726,2]
[363952981,1748945439255,-517.32,0.0001726,2]
[363952983,1748945439264,-440.0,0.0001726,2]
[363952985,1748945439274,-440.0,0.0001726,2]
[363952987,1748945439284,-452.66,0.0001726,2]
[363952989,1748945439293,-440.0,0.0001726,2]
[363952990,1748945439303,-440.0,0.0001726,2]
[363952991,1748945439313,-440.0,0.0001726,2]
[363952992,1748945439322,-442.41,0.0001726,2]
[363952993,1748945439332,-1275.44,0.0001726,2]
[363952994,1748945439341,-2083.51,0.0001726,2]
[363952995,1748945439351,-560.01,0.0001726,2]
[363952996,1748945439361,-1680.21,0.0001726,2]
[363952997,1748945439371,-513.05378082,0.0001726,2]
[363952998,1748945439380,-440.0,0.0001726,2]
[363952999,1748945439390,-531.9,0.0001726,2]
[363953000,1748945439401,-440.0,0.0001726,2]
[363953001,1748945439411,-440.0,0.0001726,2]
[363953002,1748945439420,-498.31,0.0001726,2]
[363953003,1748945439430,-440.0,0.0001726,2]
[363953004,1748945439440,-440.0,0.0001726,2]
[363953005,1748945439449,-440.0,0.0001726,2]
[363953006,1748945439459,-370.0,0.0001726,2]
[363953007,1748945439470,-2838.58,0.0001726,2]
[363953008,1748945439483,-440.0,0.0001726,2]
[363953010,1748945439493,-440.0,0.0001726,2]
[363953011,1748945439502,-440.0,0.0001726,2]
[363953012,1748945439511,-440.0,0.0001726,2]
[363953013,1748945439521,-459.56,0.0001726,2]
[363953015,1748945439531,-3028.77,0.0001726,2]
[363953017,1748945439540,-440.0,0.0001726,2]
[363953019,1748945439550,-2422.06,0.0001726,2]
[363953021,1748945439559,-440.0,0.0001726,2]
[363953023,1748945439568,-377.60808724,0.0001726,2]
[363953025,1748945439578,-1859.59,0.0001726,2]
[363953027,1748945439588,-1140.72,0.0001726,2]
[363953029,1748945439597,-440.0,0.0001726,2]
[363953031,1748945439606,-518.89,0.0001726,2]
[363953033,1748945439615,-512.59,0.0001726,2]
[363953035,1748945439624,-440.0,0.0001726,2]
[363953037,1748945439633,-1769.54,0.0001726,2]
[363953039,1748945439644,-764.36,0.0001726,2]
[363953041,1748945439653,-440.0,0.0001726,2]
[363953043,1748945439661,-814.68,0.0001726,2]
[363953045,1748945439671,-350.0,0.0001726,2]
[363953047,1748945439680,-1480.6,0.0001726,2]
[363953049,1748945439690,-383.82735018,0.0001726,2]
[363953051,1748945439699,-440.0,0.0001726,2]
[363953053,1748945439709,-440.0,0.0001726,2]
[363953055,1748945439719,-793.63,0.0001726,2]
[363953057,1748945439728,-440.0,0.0001726,2]
[363953059,1748945439739,-450.0,0.0001726,2]
[363953061,1748945439749,-1408.68,0.0001726,2]
[363953063,1748945439759,-470.69,0.0001726,2]
[363953065,1748945439770,-440.0,0.0001726,2]
[363953067,1748945439779,-440.0,0.0001726,2]
[363953069,1748945439788,-522.08,0.0001726,2]
[363953071,1748945439798,-1348.84,0.0001726,2]
[363953073,1748945439807,-440.0,0.0001726,2]
[363953075,1748945439817,-564.73,0.0001726,2]
[363953077,1748945439830,-1238.06,0.0001726,2]
[363953079,1748945439840,-1259.13,0.0001726,2]
[363953081,1748945439849,-440.0,0.0001726,2]
[363953083,1748945439858,-440.0,0.0001726,2]
[363953085,1748945439867,-589.57,0.0001726,2]
[363953087,1748945439877,-440.0,0.0001726,2]
[363953089,1748945439886,-500.0,0.00017274,2]
[363953091,1748945439897,-500.0,0.00017274,2]
[363953093,1748945439907,-500.0,0.00017274,2]
[363953095,1748945439921,-500.0,0.00017274,2]
[363953098,1748945439931,-250.0,0.000173,30]
[363953100,1748945439941,-500.0,0.00017324,2]
[363953102,1748945439950,-500.0,0.00017324,2]
[363953104,1748945439962,-500.0,0.00017324,2]
[363953106,1748945439973,-501.96633342,0.00017327,2]
[363953108,1748945439982,-165.56786385,0.00017327,2]
[363953110,1748945439991,-500.0,0.00017327,2]
[363953112,1748945440002,-625.62677359,0.00017327,2]
[363953114,1748945440011,-501.11294187,0.00017327,2]
[363953116,1748945440021,-500.0,0.00017507,2]
[363953118,1748945440031,-500.0,0.00017507,2]
[363953121,1748945440040,-519.18762381,0.00017507,2]
[363953124,1748945440050,-500.0,0.00017507,2]
[363953127,1748945440059,-500.0,0.00017507,2]
[363953144,1748945440174,-500.0,0.00017507,2]
[363953146,1748945440185,-300.2942206,0.00017531,2]
[363953148,1748945440195,-500.0,0.00017531,2]
[363953150,1748945440204,-553.57847065,0.00017531,2]
[363953152,1748945440215,-647.62,0.00017533,2]
[363953154,1748945440224,-647.62,0.00017533,2]
[363953156,1748945440234,-212.86879254,0.00017534,3]
[363953158,1748945440244,-440.0,0.00017534,2]
[363953160,1748945440254,-2857.8,0.00017534,2]
[363953162,1748945440264,-2857.8,0.00017534,2]
[363953164,1748945440274,-440.0,0.00017534,2]
[363953166,1748945440284,-440.0,0.00017534,2]
[363953168,1748945440294,-440.0,0.00017534,2]
[363953170,1748945440303,-440.0,0.00017534,2]
[363953172,1748945440314,-440.0,0.00017534,2]
[363953174,1748945440323,-192.84,0.00017534,2]
[363953176,1748945440333,-211.56649641,0.00017534,2]
[363953178,1748945440342,-322.3327829,0.00017534,2]
[363953180,1748945440352,-440.0,0.00017534,2]
[363953182,1748945440361,-440.0,0.00017534,2]
[363953184,1748945440371,-261.54265223,0.00017534,2]
[363953186,1748945440380,-449.52,0.00017534,2]
[363953188,1748945440390,-440.0,0.00017534,2]
[363953190,1748945440401,-380.0,0.00017534,2]
[363953192,1748945440413,-440.0,0.00017534,2]
[363953194,1748945440422,-440.0,0.00017534,2]
[363953196,1748945440432,-896.47,0.00017534,2]
[363953198,1748945440441,-440.0,0.00017534,2]
[363953200,1748945440450,-517.32,0.00017534,2]
[363953202,1748945440459,-440.0,0.00017534,2]
[363953204,1748945440469,-440.0,0.00017534,2]
[363953206,1748945440478,-452.66,0.00017534,2]
[363953208,1748945440488,-440.0,0.00017534,2]
[363953210,1748945440497,-440.0,0.00017534,2]
[363953212,1748945440506,-440.0,0.00017534,2]
[363953214,1748945440516,-442.41,0.00017534,2]
[363953216,1748945440526,-1275.44,0.00017534,2]
[363953218,1748945440535,-2083.51,0.00017534,2]
[363953220,1748945440546,-1680.21,0.00017534,2]
[363953222,1748945440555,-560.01,0.00017534,2]
[363953224,1748945440565,-440.0,0.00017534,2]
[363953226,1748945440574,-531.9,0.00017534,2]
[363953228,1748945440583,-440.0,0.00017534,2]
[363953230,1748945440593,-440.0,0.00017534,2]
[363953232,1748945440602,-498.31,0.00017534,2]
[363953234,1748945440611,-440.0,0.00017534,2]
[363953236,1748945440621,-440.0,0.00017534,2]
[363953238,1748945440631,-440.0,0.00017534,2]
[363953240,1748945440639,-2838.58,0.00017534,2]
[363953242,1748945440651,-440.0,0.00017534,2]
[363953244,1748945440660,-440.0,0.00017534,2]
[363953246,1748945440669,-440.0,0.00017534,2]
[363953248,1748945440679,-440.0,0.00017534,2]
[363953250,1748945440688,-459.56,0.00017534,2]
[363953252,1748945440697,-3028.77,0.00017534,2]
[363953254,1748945440706,-440.0,0.00017534,2]
[363953256,1748945440715,-2422.06,0.00017534,2]
[363953258,1748945440725,-440.0,0.00017534,2]
[363953260,1748945440734,-1859.59,0.00017534,2]
[363953261,1748945440743,-1140.72,0.00017534,2]
[363953264,1748945440753,-440.0,0.00017534,2]
[363953266,1748945440762,-518.89,0.00017534,2]
[363953268,1748945440771,-512.59,0.00017534,2]
[363953270,1748945440781,-440.0,0.00017534,2]
[363953272,1748945440790,-1769.54,0.00017534,2]
[363953274,1748945440800,-764.36,0.00017534,2]
[363953276,1748945440809,-380.0,0.00017534,2]
[363953278,1748945440818,-814.68,0.00017534,2]
[363953280,1748945440828,-1480.6,0.00017534,2]
[363953281,1748945440837,-440.0,0.00017534,2]
[363953283,1748945440847,-793.63,0.00017534,2]
[363953285,1748945440857,-440.0,0.00017534,2]
[363953287,1748945440866,-450.0,0.00017534,2]
[363953289,1748945440875,-1408.68,0.00017534,2]
[363953291,1748945440885,-470.69,0.00017534,2]
[363953293,1748945440894,-440.0,0.00017534,2]
[363953295,1748945440904,-440.0,0.00017534,2]
[363953297,1748945440915,-522.08,0.00017534,2]
[363953299,1748945440925,-1348.84,0.00017534,2]
[363953301,1748945440934,-440.0,0.00017534,2]
[363953303,1748945440943,-564.73,0.00017534,2]
[363953305,1748945440954,-1238.06,0.00017534,2]
[363953307,1748945440963,-1259.13,0.00017534,2]
[363953309,1748945440974,-440.0,0.00017534,2]
[363953312,1748945440983,-440.0,0.00017534,2]
[363953314,1748945440994,-589.57,0.00017534,2]
[363953316,1748945441003,-440.0,0.00017534,2]
[363953318,1748945441012,-500.0,0.00017541,2]
[363953320,1748945441022,-500.0,0.00017541,2]
[363953322,1748945441032,-500.0,0.00017541,2]
[363953324,1748945441041,-518.95928991,0.00017582,2]
[363953326,1748945441051,-500.0,0.00017633,2]
[363953327,1748945441060,-420.0,0.00017658,2]
[363953329,1748945441070,-420.0,0.00017658,2]
[363953331,1748945441080,-160.0,0.00017724,2]
[363953333,1748945441090,-160.0,0.00017724,2]
[363953335,1748945441100,-423.63107087,0.00017724,2]
[363953337,1748945441109,-160.0,0.00017724,2]
[363953339,1748945441119,-212.86879254,0.00017724,2]
[363953342,1748945441129,-229.42821335,0.00017724,2]
[363953344,1748945441139,-160.0,0.00017724,2]
[363953346,1748945441150,-842.5625,0.00017724,2]
[363953348,1748945441159,-12670.76136593,0.00017724,2]
[363953350,1748945441169,-508.94531069,0.00017748,2]
[363953352,1748945441179,-544.7114402,0.00017748,2]
[363953354,1748945441188,-1000.0,0.00017748,2]
[363953356,1748945441197,-160.0,0.0001779,2]
[363953358,1748945441206,-314.94761707,0.00017791,2]
[363953360,1748945441216,-160.0,0.00017791,2]
[363953362,1748945441225,-160.0,0.00017791,2]
[363953364,1748945441235,-647.62,0.00017791,2]
[363953366,1748945441244,-647.62,0.00017807,2]
[363953368,1748945441254,-440.0,0.00017808,2]
[363953370,1748945441263,-440.0,0.00017808,2]
[363953372,1748945441273,-440.0,0.00017808,2]
[363953374,1748945441282,-377.58124026,0.00017808,2]
[363953376,1748945441291,-440.0,0.00017808,2]
[363953378,1748945441301,-440.0,0.00017808,2]
[363953380,1748945441311,-440.0,0.00017808,2]
[363953381,1748945441321,-440.0,0.00017808,2]
[363953383,1748945441330,-449.52,0.00017808,2]
[363953385,1748945441339,-440.0,0.00017808,2]
[363953387,1748945441349,-440.0,0.00017808,2]
[363953389,1748945441359,-440.0,0.00017808,2]
[363953391,1748945441368,-896.47,0.00017808,2]
[363953393,1748945441377,-440.0,0.00017808,2]
[363953395,1748945441387,-517.32,0.00017808,2]
[363953397,1748945441397,-440.0,0.00017808,2]
[363953399,1748945441406,-440.0,0.00017808,2]
[363953401,1748945441416,-452.66,0.00017808,2]
[363953403,1748945441425,-440.0,0.00017808,2]
[363953405,1748945441434,-440.0,0.00017808,2]
[363953407,1748945441444,-418.72962199,0.00017808,2]
[363953409,1748945441455,-442.41,0.00017808,2]
[363953411,1748945441464,-1275.44,0.00017808,2]
[363953413,1748945441474,-2083.51,0.00017808,2]
[363953415,1748945441483,-1680.21,0.00017808,2]
[363953417,1748945441493,-560.01,0.00017808,2]
[363953419,1748945441502,-440.0,0.00017808,2]
[363953421,1748945441514,-531.9,0.00017808,2]
[363953423,1748945441524,-440.0,0.00017808,2]
[363953425,1748945441533,-440.0,0.00017808,2]
[363953427,1748945441543,-498.31,0.00017808,2]
[363953429,1748945441553,-440.0,0.00017808,2]
[363953431,1748945441563,-440.0,0.00017808,2]
[363953433,1748945441572,-440.0,0.00017808,2]
[363953435,1748945441583,-2838.58,0.00017808,2]
[363953437,1748945441592,-440.0,0.00017808,2]
[363953439,1748945441603,-440.0,0.00017808,2]
[363953441,1748945441617,-440.0,0.00017808,2]
[363953443,1748945441630,-440.0,0.00017808,2]
[363953445,1748945441639,-459.56,0.00017808,2]
[363953447,1748945441649,-3028.77,0.00017808,2]
[363953449,1748945441658,-440.0,0.00017808,2]
[363953451,1748945441667,-2422.06,0.00017808,2]
[363953453,1748945441677,-440.0,0.00017808,2]
[363953455,1748945441686,-1859.59,0.00017808,2]
[363953457,1748945441695,-1140.72,0.00017808,2]
[363953459,1748945441704,-440.0,0.00017808,2]
[363953461,1748945441713,-518.89,0.00017808,2]
[363953463,1748945441722,-512.59,0.00017808,2]
[363953465,1748945441732,-440.0,0.00017808,2]
[363953467,1748945441741,-1769.54,0.00017808,2]
[363953469,1748945441751,-764.36,0.00017808,2]
[363953471,1748945441761,-814.68,0.00017808,2]
[363953473,1748945441770,-1480.6,0.00017808,2]
[363953475,1748945441779,-440.0,0.00017808,2]
[363953477,1748945441788,-793.63,0.00017808,2]
[363953479,1748945441798,-440.0,0.00017808,2]
[363953481,1748945441807,-450.0,0.00017808,2]
[363953483,1748945441815,-1408.68,0.00017808,2]
[363953485,1748945441825,-470.69,0.00017808,2]
[363953487,1748945441835,-440.0,0.00017808,2]
[363953489,1748945441843,-440.0,0.00017808,2]
[363953491,1748945441852,-522.08,0.00017808,2]
[363953493,1748945441862,-1348.84,0.00017808,2]
[363953495,1748945441872,-440.0,0.00017808,2]
[363953497,1748945441881,-564.73,0.00017808,2]
[363953499,1748945441890,-1238.06,0.00017808,2]
[363953501,1748945441901,-1259.13,0.00017808,2]
[363953503,1748945441910,-440.0,0.00017808,2]
[363953505,1748945441922,-432.44963458,0.00017808,2]
[363953507,1748945441932,-589.57,0.00017808,2]
[363953509,1748945441942,-366.45112566,0.00017808,2]
[363953510,1748945441951,-694.84667099,0.00017821,2]
[363953511,1748945441961,-516.50162892,0.00017821,2]
[363953512,1748945441971,-3667.11274,0.00017845,2]
[363953513,1748945441980,-501.95007019,0.00017872,2]
[363953514,1748945441990,-1000.0,0.00017872,2]
[363953515,1748945442000,-1000.0,0.00017875,2]
[363953517,1748945442011,-2556.52291403,0.000179,2]
[363953519,1748945442020,-171.16702944,0.00018,3]
[363953521,1748945442030,-203.46,0.00018,2]
[363953523,1748945442039,-203.46,0.00018,2]
[363953525,1748945442049,-1002.66042553,0.00018055,2]
[363953527,1748945442059,-500.0,0.00018055,2]
[363953529,1748945442068,-501.11559569,0.00018055,2]
[363953531,1748945442078,-1004.90978063,0.00018055,2]
[363953533,1748945442087,-1009.84610238,0.00018079,2]
[363953535,1748945442096,-647.62,0.00018081,2]
[363953537,1748945442105,-647.62,0.00018081,2]
[363953539,1748945442115,-647.62,0.00018081,2]
[363953541,1748945442125,-647.62,0.00018081,2]
[363953543,1748945442134,-647.62,0.00018081,2]
[363953545,1748945442145,-647.70210826,0.00018081,2]
[363953547,1748945442155,-1000.0,0.00018082,2]
[363953549,1748945442165,-1000.0,0.00018082,2]
[363953551,1748945442174,-1000.0,0.00018082,2]
[363953553,1748945442184,-1000.0,0.00018082,7]
[363953555,1748945442194,-1000.0,0.00018082,7]
[363953558,1748945442204,-1000.0,0.00018082,7]
[363953560,1748945442214,-1000.0,0.00018082,7]
[363953562,1748945442222,-192.12721483,0.00018082,2]
[363953564,1748945442232,-440.0,0.00018082,2]
[363953566,1748945442242,-370.0,0.00018082,2]
[363953568,1748945442251,-440.0,0.00018082,2]
[363953570,1748945442261,-440.0,0.00018082,2]
[363953572,1748945442271,-409.89430423,0.00018082,2]
[363953574,1748945442281,-440.0,0.00018082,2]
[363953576,1748945442290,-449.52,0.00018082,2]
[363953578,1748945442300,-440.0,0.00018082,2]
[363953580,1748945442309,-440.0,0.00018082,2]
[363953582,1748945442318,-440.0,0.00018082,2]
[363953594,1748945442327,-896.47,0.00018082,2]
[363953596,1748945442436,-440.0,0.00018082,2]
[363953598,1748945442446,-517.32,0.00018082,2]
[363953600,1748945442455,-182.68,0.00018082,2]
[363953602,1748945442465,-440.0,0.00018082,2]
[363953604,1748945442478,-452.66,0.00018082,2]
[363953606,1748945442487,-440.0,0.00018082,2]
[363953608,1748945442497,-440.0,0.00018082,2]
[363953610,1748945442507,-442.41,0.00018082,2]
[363953612,1748945442516,-1275.44,0.00018082,2]
[363953615,1748945442526,-2083.51,0.00018082,2]
[363953617,1748945442535,-560.01,0.00018082,2]
[363953619,1748945442545,-1680.21,0.00018082,2]
[363953621,1748945442554,-440.0,0.00018082,2]
[363953623,1748945442563,-531.9,0.00018082,2]
[363953625,1748945442574,-440.0,0.00018082,2]
[363953627,1748945442584,-440.0,0.00018082,2]
[363953629,1748945442594,-498.31,0.00018082,2]
[363953631,1748945442603,-440.0,0.00018082,2]
[363953633,1748945442612,-440.0,0.00018082,2]
[363953635,1748945442621,-579.60361192,0.00018082,2]
[363953637,1748945442631,-2838.58,0.00018082,2]
[363953639,1748945442640,-440.0,0.00018082,2]
[363953641,1748945442650,-440.0,0.00018082,2]
[363953643,1748945442659,-440.0,0.00018082,2]
[363953645,1748945442669,-440.0,0.00018082,2]
[363953647,1748945442678,-459.56,0.00018082,2]
[363953649,1748945442688,-3028.77,0.00018082,2]
[363953651,1748945442697,-440.0,0.00018082,2]
[363953653,1748945442706,-2422.06,0.00018082,2]
[363953655,1748945442716,-440.0,0.00018082,2]
[363953657,1748945442725,-1859.59,0.00018082,2]
[363953659,1748945442734,-1140.72,0.00018082,2]
[363953661,1748945442744,-440.0,0.00018082,2]
[363953663,1748945442754,-518.89,0.00018082,2]
[363953665,1748945442764,-512.59,0.00018082,2]
[363953667,1748945442773,-390.0,0.00018082,2]
[363953669,1748945442783,-1769.54,0.00018082,2]
[363953671,1748945442792,-764.36,0.00018082,2]
[363953673,1748945442802,-814.68,0.00018082,2]
[363953675,1748945442812,-1480.6,0.00018082,2]
[363953677,1748945442821,-440.0,0.00018082,2]
[363953679,1748945442830,-793.63,0.00018082,2]
[363953681,1748945442840,-440.0,0.00018082,2]
[363953683,1748945442850,-450.0,0.00018082,2]
[363953685,1748945442860,-1408.68,0.00018082,2]
[363953687,1748945442869,-470.69,0.00018082,2]
[363953689,1748945442879,-440.0,0.00018082,2]
[363953691,1748945442889,-440.0,0.00018082,2]
[363953693,1748945442898,-522.08,0.00018082,2]
[363953695,1748945442908,-1348.84,0.00018082,2]
[363953697,1748945442921,-440.0,0.00018082,2]
[363953699,1748945442931,-564.73,0.00018082,2]
[363953701,1748945442941,-1238.06,0.00018082,2]
[363953703,1748945442950,-1259.13,0.00018082,2]
[363953706,1748945442961,-440.0,0.00018082,2]
[363953708,1748945442971,-589.57,0.00018082,2]
[363953711,1748945442982,-1000.0,0.00018089,2]
[363953713,1748945442993,-502.67348192,0.00018089,2]
[363953715,1748945443003,-2556.52291398,0.00018141,2]
[363953717,1748945443012,-1000.0,0.00018181,2]
[363953719,1748945443021,-1500.0,0.00018296,2]
[363953721,1748945443032,-500.0,0.00018355,2]
[363953723,1748945443042,-500.0,0.00018355,2]
[363953725,1748945443052,-500.0,0.00018355,2]
[363953727,1748945443061,-500.0,0.00018355,2]
[363953729,1748945443071,-440.0,0.00018356,2]
[363953731,1748945443081,-440.0,0.00018356,2]
[363953733,1748945443091,-440.0,0.00018356,2]
[363953735,1748945443100,-440.0,0.00018356,2]
[363953737,1748945443110,-449.52,0.00018356,2]
[363953741,1748945443120,-440.0,0.00018356,2]
[363953744,1748945443129,-440.0,0.00018356,2]
[363953747,1748945443139,-440.0,0.00018356,2]
[363953749,1748945443149,-896.47,0.00018356,2]
[363953751,1748945443158,-440.0,0.00018356,2]
[363953753,1748945443169,-517.32,0.00018356,2]
[363953755,1748945443179,-440.0,0.00018356,2]
[363953758,1748945443188,-452.66,0.00018356,2]
[363953760,1748945443198,-440.0,0.00018356,2]
[363953762,1748945443207,-440.0,0.00018356,2]
[363953764,1748945443217,-442.41,0.00018356,2]
[363953766,1748945443226,-1275.44,0.00018356,2]
[363953768,1748945443236,-2083.51,0.00018356,2]
[363953770,1748945443245,-1680.21,0.00018356,2]
[363953772,1748945443254,-560.01,0.00018356,2]
[363953774,1748945443264,-440.0,0.00018356,2]
[363953776,1748945443274,-531.9,0.00018356,2]
[363953778,1748945443285,-362.37,0.00018356,2]
[363953780,1748945443294,-440.0,0.00018356,2]
[363953782,1748945443304,-498.31,0.00018356,2]
[363953784,1748945443313,-440.0,0.00018356,2]
[363953787,1748945443323,-440.0,0.00018356,2]
[363953789,1748945443333,-2838.58,0.00018356,2]
[363953791,1748945443343,-440.0,0.00018356,2]
[363953793,1748945443353,-440.0,0.00018356,2]
[363953794,1748945443362,-440.0,0.00018356,2]
[363953796,1748945443371,-440.0,0.00018356,2]
[363953798,1748945443381,-459.56,0.00018356,2]
[363953800,1748945443391,-3028.77,0.00018356,2]
[363953802,1748945443402,-440.0,0.00018356,2]
[363953804,1748945443411,-2422.06,0.00018356,2]
[363953806,1748945443421,-440.0,0.00018356,2]
[363953808,1748945443430,-1859.59,0.00018356,2]
[363953810,1748945443439,-1140.72,0.00018356,2]
[363953812,1748945443449,-440.0,0.00018356,2]
[363953814,1748945443459,-518.89,0.00018356,2]
[363953816,1748945443467,-512.59,0.00018356,2]
[363953818,1748945443476,-1769.54,0.00018356,2]
[363953820,1748945443486,-764.36,0.00018356,2]
[363953823,1748945443497,-814.68,0.00018356,2]
[363953825,1748945443506,-1480.6,0.00018356,2]
[363953826,1748945443516,-440.0,0.00018356,2]
[363953828,1748945443525,-793.63,0.00018356,2]
[363953830,1748945443534,-440.0,0.00018356,2]
[363953832,1748945443543,-450.0,0.00018356,2]
[363953834,1748945443555,-1408.68,0.00018356,2]
[363953837,1748945443565,-470.69,0.00018356,2]
[363953839,1748945443575,-440.0,0.00018356,2]
[363953841,1748945443584,-440.0,0.00018356,2]
[363953842,1748945443593,-522.08,0.00018356,2]
[363953844,1748945443602,-1348.84,0.00018356,2]
[363953846,1748945443611,-440.0,0.00018356,2]
[363953848,1748945443621,-564.73,0.00018356,2]
[363953850,1748945443629,-1238.06,0.00018356,2]
[363953852,1748945443638,-1259.13,0.00018356,2]
[363953854,1748945443649,-440.0,0.00018356,2]
[363953856,1748945443659,-589.57,0.00018356,2]
[363953858,1748945443669,-2556.52291398,0.00018383,2]
[363953860,1748945443678,-1500.0,0.0001842,2]
[363953862,1748945443688,-1500.0,0.00018423,2]
[363953864,1748945443697,-3667.11274,0.00018462,2]
[363953866,1748945443707,-151.0,0.000186,2]
[363953868,1748945443716,-2556.52291398,0.00018624,2]
[363953870,1748945443725,-160.0,0.00018629,2]
[363953872,1748945443734,-440.0,0.0001863,2]
[363953875,1748945443745,-390.0,0.0001863,2]
[363953877,1748945443754,-440.0,0.0001863,2]
[363953879,1748945443763,-440.0,0.0001863,2]
[363953881,1748945443772,-449.52,0.0001863,2]